fUST/lending_fUST_20240925
["ID","MTS","AMOUNT","RATE_DAILY","PERIOD"]
[339134555,1727263843515,-1415.896426,0.00016328,2]
[339134557,1727263843525,-1415.896426,0.00016328,2]
[339134559,1727263843534,-5995.001551,0.00016328,2]
[339134561,1727263843545,-5995.001551,0.00016328,2]
[339134563,1727263843555,-6003.07373018,0.00016328,2]
[339134565,1727263843565,-160.0,0.00016337,2]
[339134567,1727263843574,-160.0,0.00016337,2]
[339134569,1727263843584,-151.0,0.00016338,2]
[339134571,1727263843594,-151.0,0.00016338,2]
[339134573,1727263843603,-151.0,0.00016338,2]
[339134575,1727263843613,-203.176171,0.00016338,2]
[339134577,1727263843623,-460.850731,0.00016338,2]
[339134579,1727263843633,-460.850731,0.00016338,2]
[339134582,1727263843644,-460.850731,0.00016338,2]
[339134584,1727263843653,-460.850731,0.00016338,2]
[339134586,1727263843662,-151.0,0.00016338,2]
[339134588,1727263843672,-151.0,0.00016338,2]
[339134590,1727263843681,-151.0,0.00016338,2]
[339134592,1727263843691,-151.0,0.00016338,2]
[339134594,1727263843700,-1622.130242,0.00016338,2]
[339134596,1727263843709,-1622.130242,0.00016338,2]
[339134598,1727263843719,-674.125249,0.00016338,2]
[339134600,1727263843728,-674.125249,0.00016338,2]
[339134602,1727263843738,-674.125249,0.00016338,2]
[339134604,1727263843748,-674.125249,0.00016338,2]
[339134606,1727263843757,-151.0,0.00016338,2]
[339134608,1727263843766,-604.230804,0.00016338,2]
[339134610,1727263843776,-604.230804,0.00016338,2]
[339134612,1727263843785,-604.230804,0.00016338,2]
[339134614,1727263843795,-604.230804,0.00016338,2]
[339134616,1727263843806,-151.0,0.00016338,2]
[339134618,1727263843815,-151.0,0.00016338,2]
[339134620,1727263843824,-201.073618,0.00016338,2]
[339134622,1727263843833,-201.073618,0.00016338,2]
[339134624,1727263843843,-201.073618,0.00016338,2]
[339134626,1727263843853,-201.073618,0.00016338,2]
[339134628,1727263843862,-1479.367521,0.00016338,2]
[339134630,1727263843871,-1479.367521,0.00016338,2]
[339134632,1727263843882,-1479.367521,0.00016338,2]
[339134634,1727263843893,-1479.367521,0.00016338,2]
[339134636,1727263843902,-1609.282442,0.00016338,2]
[339134638,1727263843912,-224.783085,0.00016338,2]
[339134640,1727263843921,-224.783085,0.00016338,2]
[339134642,1727263843931,-224.783085,0.00016338,2]
[339134644,1727263843940,-224.783085,0.00016338,2]
[339134646,1727263843950,-210.883947,0.00016338,2]
[339134648,1727263843960,-210.883947,0.00016338,2]
[339134650,1727263843969,-347.388722,0.00016338,2]
[339134652,1727263843980,-347.388722,0.00016338,2]
[339134654,1727263843991,-210.883947,0.00016338,2]
[339134656,1727263844000,-210.883947,0.00016338,2]
[339134658,1727263844009,-347.388722,0.00016338,2]
[339134660,1727263844019,-347.388722,0.00016338,2]
[339134662,1727263844028,-300.0,0.00016338,2]
[339134664,1727263844038,-252.304556,0.00016338,2]
[339134666,1727263844047,-407.007263,0.00016338,2]
[339134668,1727263844057,-407.007263,0.00016338,2]
[339134670,1727263844065,-151.0,0.00016338,2]
[339134672,1727263844075,-151.0,0.00016338,2]
[339134674,1727263844085,-509.067746,0.00016338,2]
[339134676,1727263844094,-509.067746,0.00016338,2]
[339134678,1727263844103,-509.067746,0.00016338,2]
[339134680,1727263844112,-509.067746,0.00016338,2]
[339134682,1727263844122,-409.246584,0.00016338,2]
[339134684,1727263844131,-409.246584,0.00016338,2]
[339134686,1727263844142,-409.246584,0.00016338,2]
[339134688,1727263844151,-409.246584,0.00016338,2]
[339134690,1727263844160,-151.0,0.00016338,2]
[339134692,1727263844170,-151.0,0.00016338,2]
[339134694,1727263844179,-151.0,0.00016338,2]
[339134696,1727263844189,-151.0,0.00016338,2]
[339134698,1727263844198,-151.0,0.00016338,2]
[339134700,1727263844207,-265.842267,0.00016338,2]
[339134702,1727263844217,-2338.008407,0.00016338,2]
[339134704,1727263844226,-2338.008407,0.00016338,2]
[339134706,1727263844237,-2338.008407,0.00016338,2]
[339134708,1727263844246,-2338.008407,0.00016338,2]
[339134710,1727263844256,-753.02402,0.00016338,2]
[339134712,1727263844266,-753.02402,0.00016338,2]
[339134714,1727263844276,-753.02402,0.00016338,2]
[339134716,1727263844286,-753.02402,0.00016338,2]
[339134718,1727263844296,-151.0,0.00016338,2]
[339134720,1727263844305,-151.0,0.00016338,2]
[339134722,1727263844315,-151.0,0.00016338,2]
[339134724,1727263844324,-151.0,0.00016338,2]
[339134726,1727263844334,-169.970857,0.00016338,2]
[339134728,1727263844344,-169.970857,0.00016338,2]
[339134730,1727263844353,-169.970857,0.00016338,2]
[339134733,1727263844363,-169.970857,0.00016338,2]
[339134734,1727263844372,-194.880073,0.00016338,2]
[339134737,1727263844383,-170.007318,0.00016338,2]
[339134739,1727263844393,-170.007318,0.00016338,2]
[339134740,1727263844402,-194.880073,0.00016338,2]
[339134743,1727263844412,-601.84609,0.00016338,2]
[339134745,1727263844421,-601.84609,0.00016338,2]
[339134747,1727263844430,-170.007318,0.00016338,2]
[339134749,1727263844440,-170.007318,0.00016338,2]
[339134751,1727263844449,-601.84609,0.00016338,2]
[339134753,1727263844459,-601.84609,0.00016338,2]
[339134755,1727263844468,-2539.362611,0.00016338,2]
[339134757,1727263844477,-364.994837,0.00016338,2]
[339134758,1727263844487,-364.994837,0.00016338,2]
[339134760,1727263844496,-2539.362611,0.00016338,2]
[339134762,1727263844505,-364.994837,0.00016338,2]
[339134764,1727263844515,-364.994837,0.00016338,2]
[339134766,1727263844524,-2481.765256,0.00016338,2]
[339134768,1727263844533,-2481.765256,0.00016338,2]
[339134770,1727263844543,-151.0,0.00016338,2]
[339134772,1727263844553,-1415.896426,0.00016338,2]
[339134774,1727263844562,-1415.896426,0.00016338,2]
[339134776,1727263844572,-5995.001551,0.00016338,2]
[339134778,1727263844581,-5995.001551,0.00016338,2]
[339134780,1727263844591,-1415.896426,0.00016338,2]
[339134782,1727263844600,-1415.896426,0.00016338,2]
[339134784,1727263844610,-5995.001551,0.00016338,2]
[339134786,1727263844619,-5995.001551,0.00016338,2]
[339134788,1727263844628,-2054.426845,0.00016338,2]
[339134790,1727263844639,-2054.426845,0.00016338,2]
[339134792,1727263844648,-255.056118,0.00016338,2]
[339134794,1727263844657,-255.056118,0.00016338,2]
[339134796,1727263844667,-151.0,0.00016338,2]
[339134798,1727263844676,-9004.61059527,0.00016339,2]
[339134800,1727263844686,-151.0,0.00016348,2]
[339134802,1727263844696,-188.709207,0.00016348,2]
[339134805,1727263844706,-188.709207,0.00016348,2]
[339134806,1727263844715,-151.0,0.00016348,2]
[339134808,1727263844724,-151.0,0.00016348,2]
[339134811,1727263844734,-151.0,0.00016348,2]
[339134812,1727263844743,-151.0,0.00016348,2]
[339134815,1727263844753,-151.0,0.00016348,2]
[339134816,1727263844762,-151.0,0.00016348,2]
[339134818,1727263844772,-151.0,0.00016348,2]
[339134820,1727263844781,-1609.282442,0.00016348,2]
[339134822,1727263844790,-151.0,0.00016348,2]
[339134824,1727263844799,-151.0,0.00016348,2]
[339134826,1727263844809,-151.0,0.00016348,2]
[339134828,1727263844817,-151.0,0.00016348,2]
[339134830,1727263844826,-1404.919312,0.00016348,2]
[339134832,1727263844836,-1404.919312,0.00016348,2]
[339134834,1727263844846,-1404.919312,0.00016348,2]
[339134836,1727263844855,-1404.919312,0.00016348,2]
[339134838,1727263844865,-433.560787,0.00016348,2]
[339134840,1727263844874,-433.560787,0.00016348,2]
[339134841,1727263844884,-433.560787,0.00016348,2]
[339134842,1727263844900,-433.560787,0.00016348,2]
[339134843,1727263844909,-661.055358,0.00016348,2]
[339134844,1727263844918,-661.055358,0.00016348,2]
[339134845,1727263844928,-661.055358,0.00016348,2]
[339134846,1727263844938,-661.055358,0.00016348,2]
[339134847,1727263844948,-151.0,0.00016348,2]
[339134848,1727263844957,-151.0,0.00016348,2]
[339134849,1727263844967,-936.844881,0.00016348,2]
[339134850,1727263844977,-936.844881,0.00016348,2]
[339134851,1727263844991,-936.844881,0.00016348,2]
[339134852,1727263845000,-936.844881,0.00016348,2]
[339134853,1727263845009,-407.007263,0.00016348,2]
[339134854,1727263845019,-407.007263,0.00016348,2]
[339134855,1727263845030,-151.0,0.00016348,2]
[339134856,1727263845040,-208.003114,0.00016348,2]
[339134857,1727263845049,-169.970857,0.00016348,2]
[339134859,1727263845060,-169.970857,0.00016348,2]
[339134861,1727263845071,-170.007318,0.00016348,2]
[339134863,1727263845080,-170.007318,0.00016348,2]
[339134865,1727263845091,-364.994837,0.00016348,2]
[339134867,1727263845100,-364.994837,0.00016348,2]
[339134869,1727263845111,-3001.53686509,0.00016349,2]
[339134871,1727263845120,-151.0,0.00016349,2]
[339134873,1727263845130,-460.850731,0.00016349,2]
[339134876,1727263845141,-460.850731,0.00016349,2]
[339134877,1727263845151,-151.0,0.00016349,2]
[339134880,1727263845160,-151.0,0.00016349,2]
[339134882,1727263845170,-1622.130242,0.00016349,2]
[339134884,1727263845179,-674.125249,0.00016349,2]
[339134886,1727263845189,-674.125249,0.00016349,2]
[339134888,1727263845198,-155.709969,0.00016349,2]
[339134889,1727263845207,-604.230804,0.00016349,2]
[339134891,1727263845217,-604.230804,0.00016349,2]
[339134893,1727263845226,-276.277042,0.00016349,2]
[339134895,1727263845235,-201.073618,0.00016349,2]
[339134897,1727263845245,-201.073618,0.00016349,2]
[339134899,1727263845254,-1479.367521,0.00016349,2]
[339134901,1727263845265,-1479.367521,0.00016349,2]
[339134903,1727263845274,-1609.282442,0.00016349,2]
[339134905,1727263845284,-151.0,0.00016349,2]
[339134907,1727263845294,-151.0,0.00016349,2]
[339134909,1727263845304,-1404.919312,0.00016349,2]
[339134911,1727263845313,-224.783085,0.00016349,2]
[339134913,1727263845322,-1404.919312,0.00016349,2]
[339134915,1727263845332,-224.783085,0.00016349,2]
[339134917,1727263845344,-210.883947,0.00016349,2]
[339134919,1727263845353,-347.388722,0.00016349,2]
[339134921,1727263845363,-210.883947,0.00016349,2]
[339134924,1727263845373,-433.560787,0.00016349,2]
[339134926,1727263845383,-347.388722,0.00016349,2]
[339134928,1727263845394,-433.560787,0.00016349,2]
[339134930,1727263845404,-661.055358,0.00016349,2]
[339134932,1727263845414,-661.055358,0.00016349,2]
[339134934,1727263845423,-151.0,0.00016349,2]
[339134936,1727263845433,-936.844881,0.00016349,2]
[339134937,1727263845442,-936.844881,0.00016349,2]
[339134939,1727263845452,-407.007263,0.00016349,2]
[339134941,1727263845462,-407.007263,0.00016349,2]
[339134944,1727263845473,-151.0,0.00016349,2]
[339134945,1727263845483,-509.067746,0.00016349,2]
[339134948,1727263845492,-509.067746,0.00016349,2]
[339134950,1727263845502,-409.246584,0.00016349,2]
[339134952,1727263845512,-409.246584,0.00016349,2]
[339134954,1727263845522,-151.0,0.00016349,2]
[339134956,1727263845531,-151.0,0.00016349,2]
[339134957,1727263845540,-2338.008407,0.00016349,2]
[339134959,1727263845550,-2338.008407,0.00016349,2]
[339134961,1727263845559,-753.02402,0.00016349,2]
[339134963,1727263845569,-753.02402,0.00016349,2]
[339134965,1727263845579,-1000.0,0.00016349,2]
[339134967,1727263845588,-1000.0,0.00016349,2]
[339134969,1727263845598,-1000.0,0.00016349,2]
[339134971,1727263845607,-1000.0,0.00016349,2]
[339134973,1727263845618,-1000.0,0.00016349,2]
[339134975,1727263845627,-1000.0,0.00016349,2]
[339134977,1727263845637,-1000.0,0.00016349,2]
[339134979,1727263845647,-1000.0,0.00016349,2]
[339134981,1727263845657,-1000.0,0.00016349,2]
[339134983,1727263845666,-1000.0,0.00016349,2]
[339134985,1727263845677,-1000.0,0.00016349,2]
[339134987,1727263845686,-1000.0,0.00016349,2]
[339134989,1727263845696,-1000.0,0.00016349,2]
[339134991,1727263845705,-1000.0,0.00016349,2]
[339134993,1727263845715,-1000.0,0.00016349,2]
[339134995,1727263845725,-1000.0,0.00016349,2]
[339134997,1727263845734,-1000.0,0.00016349,2]
[339134999,1727263845744,-1000.0,0.00016349,2]
[339135001,1727263845753,-1000.0,0.00016349,2]
[339135003,1727263845763,-1000.0,0.00016349,2]
[339135005,1727263845772,-1000.0,0.00016349,2]
[339135007,1727263845781,-1000.0,0.00016349,2]
[339135009,1727263845791,-1000.0,0.00016349,2]
[339135011,1727263845800,-1000.0,0.00016349,2]
[339135013,1727263845809,-1000.0,0.00016349,2]
[339135015,1727263845818,-1000.0,0.00016349,2]
[339135017,1727263845828,-1000.0,0.00016349,2]
[339135019,1727263845837,-1000.0,0.00016349,2]
[339135021,1727263845846,-1000.0,0.00016349,2]
[339135023,1727263845856,-1000.0,0.00016349,2]
[339135026,1727263845867,-1000.0,0.00016349,2]
[339135028,1727263845876,-1000.0,0.00016349,2]
[339135030,1727263845887,-1000.0,0.00016349,2]
[339135032,1727263845896,-1000.0,0.00016349,2]
[339135034,1727263845907,-1000.0,0.00016349,2]
[339135036,1727263845918,-1000.0,0.00016349,2]
[339135038,1727263845928,-1000.0,0.00016349,2]
[339135040,1727263845938,-1000.0,0.00016349,2]
[339135042,1727263845948,-1000.0,0.00016349,2]
[339135044,1727263845959,-1000.0,0.00016349,2]
[339135047,1727263845970,-1000.0,0.00016349,2]
[339135049,1727263845980,-1000.0,0.00016349,2]
[339135051,1727263845994,-1000.0,0.00016349,2]
[339135053,1727263846005,-1000.0,0.00016349,2]
[339135055,1727263846016,-1000.0,0.00016349,2]
[339135057,1727263846027,-1000.0,0.00016349,2]
[339135059,1727263846039,-1000.0,0.00016349,2]
[339135061,1727263846049,-1000.0,0.00016349,2]
[339135064,1727263846064,-1000.0,0.00016349,2]
[339135066,1727263846074,-1000.0,0.00016349,2]
[339135068,1727263846083,-1000.0,0.00016349,2]
[339135070,1727263846093,-1000.0,0.00016349,2]
[339135073,1727263846102,-194.880073,0.00016349,2]
[339135075,1727263846111,-1000.0,0.00016349,2]
[339135078,1727263846121,-1000.0,0.00016349,2]
[339135080,1727263846131,-1000.0,0.00016349,2]
[339135082,1727263846142,-1000.0,0.00016349,2]
[339135084,1727263846152,-1000.0,0.00016349,2]
[339135086,1727263846162,-1000.0,0.00016349,2]
[339135088,1727263846171,-1000.0,0.00016349,2]
[339135090,1727263846182,-1000.0,0.00016349,2]
[339135092,1727263846193,-194.880073,0.00016349,2]
[339135094,1727263846202,-601.84609,0.00016349,2]
[339135096,1727263846212,-1000.0,0.00016349,2]
[339135098,1727263846222,-1000.0,0.00016349,2]
[339135100,1727263846232,-1000.0,0.00016349,2]
[339135102,1727263846243,-1000.0,0.00016349,2]
[339135104,1727263846253,-1000.0,0.00016349,2]
[339135106,1727263846262,-1000.0,0.00016349,2]
[339135108,1727263846271,-1000.0,0.00016349,2]
[339135110,1727263846281,-1000.0,0.00016349,2]
[339135112,1727263846291,-1000.0,0.00016349,2]
[339135114,1727263846300,-889.659147,0.00016349,2]
[339135116,1727263846309,-601.84609,0.00016349,2]
[339135118,1727263846318,-2539.362611,0.00016349,2]
[339135120,1727263846328,-2539.362611,0.00016349,2]
[339135122,1727263846337,-2481.765256,0.00016349,2]
[339135124,1727263846346,-2481.765256,0.00016349,2]
[339135126,1727263846356,-151.0,0.00016349,2]
[339135128,1727263846365,-1415.896426,0.00016349,2]
[339135130,1727263846374,-5995.001551,0.00016349,2]
[339135132,1727263846384,-1415.896426,0.00016349,2]
[339135134,1727263846393,-5995.001551,0.00016349,2]
[339135136,1727263846402,-2054.426845,0.00016349,2]
[339135138,1727263846411,-2054.426845,0.00016349,2]
[339135140,1727263846421,-2054.426845,0.00016349,2]
[339135142,1727263846430,-2054.426845,0.00016349,2]
[339135144,1727263846440,-255.056118,0.00016349,2]
[339135145,1727263846449,-255.056118,0.00016349,2]
[339135147,1727263846459,-151.0,0.00016349,2]
[339135149,1727263846469,-151.0,0.00016349,2]
[339135151,1727263846478,-151.0,0.00016359,2]
[339135153,1727263846489,-151.0,0.00016359,2]
[339135155,1727263846499,-188.709207,0.00016359,2]
[339135157,1727263846508,-188.709207,0.00016359,2]
[339135159,1727263846518,-188.709207,0.00016359,2]
[339135161,1727263846527,-188.709207,0.00016359,2]
[339135163,1727263846537,-151.0,0.00016359,2]
[339135165,1727263846546,-151.0,0.00016359,2]
[339135167,1727263846556,-151.0,0.00016359,2]
[339135169,1727263846565,-151.0,0.00016359,2]
[339135171,1727263846575,-151.0,0.00016359,2]
[339135173,1727263846585,-151.0,0.00016359,2]
[339135175,1727263846594,-151.0,0.00016359,2]
[339135177,1727263846604,-151.0,0.00016359,2]
[339135179,1727263846614,-151.0,0.00016359,2]
[339135181,1727263846623,-151.0,0.00016359,2]
[339135183,1727263846633,-460.850731,0.00016359,2]
[339135185,1727263846645,-460.850731,0.00016359,2]
[339135187,1727263846655,-460.850731,0.00016359,2]
[339135189,1727263846665,-460.850731,0.00016359,2]
[339135191,1727263846674,-151.0,0.00016359,2]
[339135193,1727263846683,-151.0,0.00016359,2]
[339135195,1727263846693,-286.843106,0.00016359,2]
[339135197,1727263846703,-151.0,0.00016359,2]
[339135199,1727263846712,-151.0,0.00016359,2]
[339135201,1727263846722,-151.0,0.00016359,2]
[339135203,1727263846732,-171.663762,0.00016359,2]
[339135205,1727263846742,-1622.130242,0.00016359,2]
[339135207,1727263846751,-1622.130242,0.00016359,2]
[339135209,1727263846760,-674.125249,0.00016359,2]
[339135211,1727263846770,-674.125249,0.00016359,2]
[339135213,1727263846780,-674.125249,0.00016359,2]
[339135215,1727263846789,-674.125249,0.00016359,2]
[339135217,1727263846799,-604.230804,0.00016359,2]
[339135219,1727263846809,-604.230804,0.00016359,2]
[339135221,1727263846818,-604.230804,0.00016359,2]
[339135223,1727263846828,-604.230804,0.00016359,2]
[339135225,1727263846837,-201.073618,0.00016359,2]
[339135226,1727263846846,-201.073618,0.00016359,2]
[339135229,1727263846856,-201.073618,0.00016359,2]
[339135230,1727263846865,-201.073618,0.00016359,2]
[339135232,1727263846875,-1479.367521,0.00016359,2]
[339135235,1727263846884,-1479.367521,0.00016359,2]
[339135236,1727263846895,-1479.367521,0.00016359,2]
[339135238,1727263846904,-1479.367521,0.00016359,2]
[339135240,1727263846914,-1609.282442,0.00016359,2]
[339135242,1727263846923,-1609.282442,0.00016359,2]
[339135244,1727263846934,-151.0,0.00016359,2]
[339135246,1727263846943,-151.0,0.00016359,2]
[339135248,1727263846954,-247.737851,0.00016359,2]
[339135250,1727263846964,-1404.919312,0.00016359,2]
[339135252,1727263846973,-1404.919312,0.00016359,2]
[339135254,1727263846985,-224.783085,0.00016359,2]
[339135256,1727263846996,-224.783085,0.00016359,2]
[339135258,1727263847006,-1404.919312,0.00016359,2]
[339135260,1727263847016,-1404.919312,0.00016359,2]
[339135263,1727263847027,-224.783085,0.00016359,2]
[339135264,1727263847036,-224.783085,0.00016359,2]
[339135266,1727263847046,-210.883947,0.00016359,2]
[339135268,1727263847057,-210.883947,0.00016359,2]
[339135271,1727263847067,-347.388722,0.00016359,2]
[339135273,1727263847078,-210.883947,0.00016359,2]
[339135274,1727263847087,-210.883947,0.00016359,2]
[339135277,1727263847097,-433.560787,0.00016359,2]
[339135279,1727263847108,-347.388722,0.00016359,2]
[339135281,1727263847118,-433.560787,0.00016359,2]
[339135282,1727263847127,-433.560787,0.00016359,2]
[339135285,1727263847138,-433.560787,0.00016359,2]
[339135287,1727263847147,-661.055358,0.00016359,2]
[339135289,1727263847158,-661.055358,0.00016359,2]
[339135291,1727263847167,-661.055358,0.00016359,2]
[339135292,1727263847177,-661.055358,0.00016359,2]
[339135294,1727263847187,-151.0,0.00016359,2]
[339135296,1727263847196,-151.0,0.00016359,2]
[339135318,1727263847397,-936.844881,0.00016359,2]
[339135320,1727263847407,-936.844881,0.00016359,2]
[339135322,1727263847417,-936.844881,0.00016359,2]
[339135323,1727263847426,-936.844881,0.00016359,2]
[339135324,1727263847436,-407.007263,0.00016359,2]
[339135325,1727263847446,-407.007263,0.00016359,2]
[339135326,1727263847456,-407.007263,0.00016359,2]
[339135327,1727263847466,-407.007263,0.00016359,2]
[339135329,1727263847477,-151.0,0.00016359,2]
[339135331,1727263847486,-509.067746,0.00016359,2]
[339135333,1727263847496,-509.067746,0.00016359,2]
[339135335,1727263847506,-409.246584,0.00016359,2]
[339135337,1727263847516,-409.246584,0.00016359,2]
[339135339,1727263847525,-151.0,0.00016359,2]
[339135341,1727263847535,-151.0,0.00016359,2]
[339135343,1727263847545,-2338.008407,0.00016359,2]
[339135346,1727263847557,-2338.008407,0.00016359,2]
[339135348,1727263847567,-753.02402,0.00016359,2]
[339135350,1727263847577,-753.02402,0.00016359,2]
[339135352,1727263847587,-151.0,0.00016359,2]
[339135355,1727263847607,-169.970857,0.00016359,2]
[339135357,1727263847618,-169.970857,0.00016359,2]
[339135359,1727263847630,-194.880073,0.00016359,2]
[339135361,1727263847640,-170.007318,0.00016359,2]
[339135363,1727263847651,-194.880073,0.00016359,2]
[339135366,1727263847662,-601.84609,0.00016359,2]
[339135368,1727263847673,-170.007318,0.00016359,2]
[339135370,1727263847684,-601.84609,0.00016359,2]
[339135372,1727263847694,-2539.362611,0.00016359,2]
[339135374,1727263847704,-364.994837,0.00016359,2]
[339135376,1727263847714,-2539.362611,0.00016359,2]
[339135378,1727263847725,-364.994837,0.00016359,2]
[339135380,1727263847735,-2481.765256,0.00016359,2]
[339135382,1727263847745,-2481.765256,0.00016359,2]
[339135384,1727263847755,-299.447619,0.00016359,2]
[339135386,1727263847766,-1415.896426,0.00016359,2]
[339135389,1727263847776,-5995.001551,0.00016359,2]
[339135391,1727263847786,-1415.896426,0.00016359,2]
[339135392,1727263847796,-5995.001551,0.00016359,2]
[339135395,1727263847807,-2054.426845,0.00016359,2]
[339135397,1727263847816,-2054.426845,0.00016359,2]
[339135399,1727263847827,-255.056118,0.00016359,2]
[339135401,1727263847837,-255.056118,0.00016359,2]
[339135403,1727263847847,-155.533689,0.00016359,2]
[339135405,1727263847857,-160.0,0.00016368,2]
[339135407,1727263847868,-161.95168062,0.00016368,2]
[339135409,1727263847878,-160.0,0.00016368,2]
[339135411,1727263847889,-160.0,0.00016368,2]
[339135413,1727263847900,-124363.52422308,0.00016369,2]
[339135415,1727263847911,-369.78108,0.00016369,2]
[339135418,1727263847922,-369.78108,0.00016369,2]
[339135420,1727263847932,-151.0,0.00016369,2]
[339135422,1727263847942,-268.395524,0.00016369,2]
[339135424,1727263847953,-268.395524,0.00016369,2]
[339135426,1727263847963,-151.0,0.00016369,2]
[339135428,1727263847974,-151.0,0.00016369,2]
[339135430,1727263847988,-163.442334,0.00016369,2]
[339135432,1727263848000,-163.442334,0.00016369,2]
[339135434,1727263848011,-151.0,0.00016369,2]
[339135436,1727263848021,-151.0,0.00016369,2]
[339135439,1727263848033,-188.709207,0.00016369,2]
[339135441,1727263848043,-188.709207,0.00016369,2]
[339135443,1727263848054,-188.709207,0.00016369,2]
[339135445,1727263848064,-188.709207,0.00016369,2]
[339135447,1727263848076,-151.0,0.00016369,2]
[339135449,1727263848086,-151.0,0.00016369,2]
[339135451,1727263848097,-151.0,0.00016369,2]
[339135454,1727263848108,-151.0,0.00016369,2]
[339135456,1727263848118,-151.0,0.00016369,2]
[339135458,1727263848129,-151.0,0.00016369,2]
[339135460,1727263848139,-207.718254,0.00016369,2]
[339135462,1727263848149,-151.0,0.00016369,2]
[339135464,1727263848160,-460.850731,0.00016369,2]
[339135466,1727263848171,-460.850731,0.00016369,2]
[339135468,1727263848181,-151.0,0.00016369,2]
[339135470,1727263848191,-151.0,0.00016369,2]
[339135472,1727263848201,-151.0,0.00016369,2]
[339135475,1727263848215,-1622.130242,0.00016369,2]
[339135477,1727263848226,-674.125249,0.00016369,2]
[339135479,1727263848236,-674.125249,0.00016369,2]
[339135481,1727263848247,-604.230804,0.00016369,2]
[339135483,1727263848257,-604.230804,0.00016369,2]
[339135485,1727263848267,-201.073618,0.00016369,2]
[339135488,1727263848277,-201.073618,0.00016369,2]
[339135490,1727263848287,-1479.367521,0.00016369,2]
[339135492,1727263848298,-1479.367521,0.00016369,2]
[339135494,1727263848307,-1609.282442,0.00016369,2]
[339135496,1727263848318,-151.0,0.00016369,2]
[339135498,1727263848328,-1404.919312,0.00016369,2]
[339135500,1727263848338,-224.783085,0.00016369,2]
[339135502,1727263848349,-1404.919312,0.00016369,2]
[339135504,1727263848359,-224.783085,0.00016369,2]
[339135506,1727263848369,-210.883947,0.00016369,2]
[339135509,1727263848379,-347.388722,0.00016369,2]
[339135511,1727263848397,-210.883947,0.00016369,2]
[339135513,1727263848409,-347.388722,0.00016369,2]
[339135515,1727263848419,-433.560787,0.00016369,2]
[339135517,1727263848429,-433.560787,0.00016369,2]
[339135519,1727263848438,-661.055358,0.00016369,2]
[339135521,1727263848449,-661.055358,0.00016369,2]
[339135523,1727263848460,-152.599041,0.00016369,2]
[339135525,1727263848470,-936.844881,0.00016369,2]
[339135527,1727263848481,-936.844881,0.00016369,2]
[339135529,1727263848491,-407.007263,0.00016369,2]
[339135531,1727263848500,-407.007263,0.00016369,2]
[339135534,1727263848510,-151.0,0.00016369,2]
[339135536,1727263848520,-509.067746,0.00016369,2]
[339135538,1727263848530,-509.067746,0.00016369,2]
[339135540,1727263848540,-409.246584,0.00016369,2]
[339135542,1727263848550,-409.246584,0.00016369,2]
[339135544,1727263848560,-151.0,0.00016369,2]
[339135546,1727263848570,-151.0,0.00016369,2]
[339135548,1727263848580,-2338.008407,0.00016369,2]
[339135550,1727263848590,-2338.008407,0.00016369,2]
[339135552,1727263848599,-753.02402,0.00016369,2]
[339135554,1727263848610,-753.02402,0.00016369,2]
[339135557,1727263848620,-151.0,0.00016369,2]
[339135559,1727263848630,-169.970857,0.00016369,2]
[339135561,1727263848645,-169.970857,0.00016369,2]
[339135563,1727263848660,-194.880073,0.00016369,2]
[339135566,1727263848671,-170.007318,0.00016369,2]
[339135568,1727263848682,-194.880071,0.00016369,2]